Cogmind - Beta 14 @@@ ROGUE MODE // 2024.11.14 @ 18:37:55 Player: UberDoot Result: Destroyed by G-73 Enforcer with Phase Gun Performance ------------- Evolutions (8) 4000 Regions Visited (21) 4200 Robots Destroyed (318) 1590 Value Destroyed (16081) 16081 Prototype IDs (34) 680 Alien Tech Used (1) 200 Bonus (6504) 6504 TOTAL SCORE: 33255 Bonus ------- Triggered High Security 500 High Alert Combat Kills 4548 Follower Combat Kills 1386 Entered DSFs 500 Met Data Miner 300 Met Imprinter 300 Friendly Fire -1030 Cogmind --------- Core Integrity 0/1450 Matter 295/300 Energy 137/325 System Corruption 60% Temperature Cool (0) Movement Core (450) Ox8 Location -2/Research Parts ------- > --- POWER (3) -------- Reinforced Antimatter Reactor > --- PROPULSION (6) --- (None) > --- UTILITY (11) ----- Advanced Targeting Computer > --- WEAPON (4) ------- Shock Maul > --- INVENTORY (5) ---- Light Antimatter Reactor Advanced Heat Sink Advanced Heat Sink Advanced Heat Sink Long-range Tractor Beam Peak State ------------ > --- POWER ------------ Particle Reactor Graviton Reactor Light Quantum Reactor > --- PROPULSION ------- Biometal Heavy Treads Biometal Heavy Treads Advanced Heavy Siege Treads > --- UTILITY ---------- Advanced Heat Sink Advanced Heat Sink Advanced Heat Sink Huge Storage Unit Terrain Scanner Advanced Targeting Computer Advanced Transmission Jammer Layered Heavy Armor Plating Improved Hardlight Generator Improved Remote Force Field > --- WEAPON ----------- Quantum Rifle Quantum Rifle Enhanced Quantum Rifle Enhanced Quantum Rifle > --- INVENTORY -------- Reinforced Antimatter Reactor Particle Reactor Quantum Reactor Improved Heavy Treads Improved Heavy Treads Biometal Heavy Treads Advanced Heat Sink Energy Well Experimental Matter Compressor Improved Core Shielding Heavy Armor Plating Long-range Tractor Beam Dispersion Rifle Dispersion Rifle Quantum Rifle Compact HERF Cannon Enhanced Nova Cannon Improved Datajack Improved Plasma Cutter Shock Maul [Rating: 182] Favorites ----------- Power Heavy Deuterium Engine Engine Heavy Deuterium Engine Power Core Neutrino Core Reactor Antimatter Reactor Propulsion Light Treads Treads Light Treads Leg Myomer Leg Wheel Wheel Utility Improved Cooling System Device Improved Cooling System Storage High-capacity Storage Unit Processor Advanced Targeting Computer Protection Medium Reactive Plating Weapon Precision Assault Rifle Energy Gun Wave Gun Energy Cannon Plasma Cannon Ballistic Gun Precision Assault Rifle Ballistic Cannon Gauss Cannon Launcher Heavy Missile Launcher Impact Weapon Power Maul Special Melee Weapon Improved Datajack Build | -11 -10 -10 -8 -7 -7 -7 -7 -6 -6 -6 -6 -6 -5 -5 -4 -4 -4 -4 -3 -3 -2 ------- Run | Yrd Mat Sub Mat Fac Low Low Zio Pro Fac Low Low Dat Pro Fac Fac Was Fac DSF Res Tes Res Slots Evolved 16 | . . . 4 2 . . . . 2 . . . . 2 2 . . . 2 . 2 Power 2 | . . . . . . . . . . . . . . 1 . . . . . . 1 Propulsion 4 | . . . 1 1 . . . . . . . . . . 1 . . . 1 . . Utility 9 | . . . 2 1 . . . . 2 . . . . 1 1 . . . 1 . 1 Weapon 1 | . . . 1 . . . . . . . . . . . . . . . . . . Parts Attached 520 | 7 7 31 45 28 11 8 9 12 13 9 12 . 27 58 25 14 . 12 12 42 138 Power 45 | 1 2 1 6 4 . . . . 1 . . . 1 4 1 3 . 2 . 2 17 Engine 16 | 1 1 1 6 4 . . . . 1 . . . 1 1 . . . . . . . Core 8 | . 1 . . . . . . . . . . . . 3 1 . . 2 . 1 . Reactor 21 | . . . . . . . . . . . . . . . . 3 . . . 1 17 Propulsion 95 | 2 1 3 13 5 3 2 . 5 5 2 2 . 5 11 3 4 . 7 2 . 20 Treads 67 | 2 1 1 6 5 3 . . 5 3 2 2 . 2 4 2 3 . 7 2 . 17 Leg 6 | . . . 3 . . . . . . . . . . . . . . . . . 3 Wheel 22 | . . 2 4 . . 2 . . 2 . . . 3 7 1 1 . . . . . Hover . | . . . . . . . . . . . . . . . . . . . . . . Flight . | . . . . . . . . . . . . . . . . . . . . . . Utility 194 | 2 1 10 14 10 4 3 4 3 6 5 3 . 9 22 11 1 . 3 3 21 59 Device 137 | 1 . 5 5 5 3 1 3 2 4 5 3 . 7 16 8 . . 3 3 16 47 Storage 7 | 1 1 . 1 . . 1 . . . . . . . 1 . . . . . 2 . Processor 9 | . . . 1 1 . . . . 1 . . . 1 . 1 . . . . 1 3 Hackware . | . . . . . . . . . . . . . . . . . . . . . . Protection 41 | . . 5 7 4 1 1 1 1 1 . . . 1 5 2 1 . . . 2 9 Artifact . | . . . . . . . . . . . . . . . . . . . . . . Weapon 186 | 2 3 17 12 9 4 3 5 4 1 2 7 . 12 21 10 6 . . 7 19 42 Energy Gun 33 | . . . 5 2 . . . . . . . . 3 8 . . . . 3 1 11 Energy Cannon 15 | . 1 . 1 . . . 1 1 . . . . . 1 . . . . 1 5 4 Ballistic Gun 62 | 2 1 5 3 5 . 2 . . . . . . 2 4 6 4 . . 2 9 17 Ballistic Cannon 27 | . 1 5 2 . 2 1 3 2 1 1 4 . 3 2 . . . . . . . Launcher 17 | . . 3 1 . . . . 1 . 1 . . 4 . 3 1 . . . 2 1 Special Weapon . | . . . . . . . . . . . . . . . . . . . . . . Impact Weapon 30 | . . 4 . 2 2 . 1 . . . 2 . . 6 . 1 . . 1 2 9 Slashing Weapon . | . . . . . . . . . . . . . . . . . . . . . . Piercing Weapon . | . . . . . . . . . . . . . . . . . . . . . . Special Melee Weapon 2 | . . . . . . . . . . . 1 . . . 1 . . . . . . Unidentified Prototypes 19 | . . . 2 4 . . 2 . . . 1 . . 3 . 1 . . 1 2 3 Corrupted Parts 4 | . . . . . . . . 1 . . . . . . . . . . . . 3 System Corruption 17 | . . . . . . . . 9 . . . . . . . . . . . . 8 Parts Lost 116 | . . 8 1 1 3 1 . 1 . . . . 12 3 5 . . . . 3 78 Power 19 | . . 2 1 . . . . . . . . . 1 . 1 . . . . . 14 Propulsion 24 | . . 1 . . 2 1 . . . . . . 5 2 . . . . . . 13 Utility 48 | . . 2 . 1 1 . . 1 . . . . 2 1 4 . . . . 2 34 Weapon 25 | . . 3 . . . . . . . . . . 4 . . . . . . 1 17 Highest Loss Streak 15 | . . 4 1 1 3 1 . 1 . . . . 5 1 2 . . . . 2 15 To Critical Strikes . | . . . . . . . . . . . . . . . . . . . . . . Average Slot Usage (%) 93 | . 99 96 94 99 99 97 100 99 99 100 99 100 96 98 89 83 75 77 77 77 83 Engine 5 | . 11 10 7 6 7 7 7 7 6 6 6 6 6 7 . . . . . . . Core 1 | . 2 . . . . . . . . . . . . 3 9 7 . 3 4 4 . Reactor 2 | . . . . . . . . . . . . . . . . 2 10 6 4 4 10 Treads 18 | . 27 15 16 28 29 26 15 25 13 26 25 25 14 5 14 12 10 15 18 18 13 Wheel 5 | . . 11 10 1 . 1 15 4 12 . . . 6 14 6 5 5 1 . . . Device 17 | . 14 6 9 13 11 7 14 9 18 26 25 25 24 25 21 15 10 10 13 13 23 Storage 6 | . 14 14 9 7 7 7 7 7 6 6 6 6 6 5 5 5 5 5 4 4 4 Processor 5 | . . . 2 7 7 7 7 7 11 6 6 6 6 5 6 10 10 10 9 9 7 Protection 7 | . . 6 11 8 10 14 7 12 8 6 6 6 6 5 5 5 5 5 4 4 5 Energy Gun 3 | . . . 6 1 . . . . . . . . 2 9 1 . . . 9 12 8 Energy Cannon 2 | . 5 1 6 2 . . . 5 6 6 6 6 1 . . . . . . . 1 Ballistic Gun 8 | . 18 10 4 17 11 8 11 1 . . . . 6 10 18 19 20 20 7 3 4 Ballistic Cannon 6 | . 4 13 8 . 7 7 9 14 12 12 14 18 12 . . . . . . . . Peak Build Rating 182 | 7 11 15 29 44 48 49 55 52 65 65 67 67 70 102 117 121 118 129 143 149 182 Average Rating 72 | 4 8 12 24 39 46 47 50 51 56 61 64 67 60 81 110 114 118 123 140 144 157 On Entrance 67 | . 7 9 15 29 44 48 48 48 52 65 61 67 67 55 97 115 118 118 128 142 147 Naked Turns . | . . . . . . . . . . . . . . . . . . . . . . Heaviest Build 223 | 13 32 32 61 69 86 108 108 115 118 91 97 97 104 173 172 181 181 181 182 190 223 Greatest Support 230 | 40 40 40 39 80 96 96 26 100 100 98 101 101 101 109 81 28 28 175 210 210 230 Greatest Overweight (x) 15 | . 1 3 6 6 . 10 4 3 3 . . . 6 15 6 6 6 6 . . 9 Average Overweight (x) 1 | . . 2 4 . . . 3 1 2 . . . 2 3 4 5 6 2 . . . Largest Inventory Capacity 25 | 8 15 15 15 15 15 20 20 20 20 20 20 20 20 25 25 25 25 25 25 25 25 Average Capacity 19 | 7 12 15 15 15 15 16 20 20 20 20 20 20 20 21 25 25 25 25 25 25 24 Most Carried 25 | 7 15 15 15 15 15 20 20 20 20 20 20 20 20 25 25 25 25 25 25 25 25 Average Carried 18 | 5 11 14 14 14 14 15 19 19 19 20 19 20 18 21 23 24 25 24 24 24 21 Final Capacity 25 | 8 15 15 15 15 15 20 20 20 20 20 20 20 20 25 25 25 25 25 25 25 5 Final Carried 25 | 7 15 15 15 15 15 20 20 19 20 20 20 20 18 24 25 25 25 25 25 25 5 Class Distribution -------------------- 28% | Scavenger-Tank 18% | Mutant 17% | Gunner 12% | Derelict-Tank 11% | Scavenger-Gunner 8% | Tank Dominant Class ---------------- Mutant | -10/Materials Mutant | -10/Subcaves Scavenger-Tank | -8/Materials Scavenger-Gunner | -7/Factory Mutant | -7/Lower Caves Mutant | -7/Lower Caves Gunner | -7/Zion Scavenger-Tank | -6/Proximity Caves Derelict-Skirmisher | -6/Factory Derelict-Tank | -6/Lower Caves Derelict-Tank | -6/Lower Caves Derelict-Tank | -6/Data Miner Scavenger-Tank | -5/Proximity Caves Scavenger-Gunner | -5/Factory Gunner | -4/Factory Gunner | -4/Waste Gunner | -4/Factory Gunner | -4/DSF Gunner | -3/Research Gunner | -3/Testing Scavenger-Tank | -2/Research Resources | -11 -10 -10 -8 -7 -7 -7 -7 -6 -6 -6 -6 -6 -5 -5 -4 -4 -4 -4 -3 -3 -2 ----------- Run | Yrd Mat Sub Mat Fac Low Low Zio Pro Fac Low Low Dat Pro Fac Fac Was Fac DSF Res Tes Res Matter Collected 12050 | 286 252 426 1082 551 343 289 88 569 95 644 300 . 1029 928 748 157 . 74 130 1323 2736 Remotely 3046 | . . . . . 182 . . . . 163 74 . 415 324 603 . . . . 623 662 Salvage Created 16077 | 94 339 260 1314 938 113 145 . 417 90 249 231 . 999 1398 998 112 . . 48 1518 6814 Parts 719 | 10 20 26 71 52 . . . 9 4 3 4 . 27 84 36 . . . 2 86 285 Haulers Intercepted 10 | . 1 . 3 2 . . . . 1 . . . . 2 . . . . . 1 . Recyclers Shooed 3 | . 1 . . . . . . . . . . . . 1 . . . . . . 1 Parts Field Recycled . | . . . . . . . . . . . . . . . . . . . . . . Retrieved Matter . | . . . . . . . . . . . . . . . . . . . . . . Parts Self-Destructed 60 | . . 6 . . . . . 18 . 5 3 . 28 . . . . . . . . Prevented . | . . . . . . . . . . . . . . . . . . . . . . Kills | -11 -10 -10 -8 -7 -7 -7 -7 -6 -6 -6 -6 -6 -5 -5 -4 -4 -4 -4 -3 -3 -2 ------- Run | Yrd Mat Sub Mat Fac Low Low Zio Pro Fac Low Low Dat Pro Fac Fac Was Fac DSF Res Tes Res Combat Hostiles Destroyed 246 | . 7 12 20 13 1 1 . 9 1 7 2 . 26 17 18 . . . . 25 87 Melee 1 | . . . . . . . . . . . . . . . . . . . . . 1 Guns 140 | . 6 4 3 8 . . . . . . . . 4 17 11 . . . . 20 67 Cannons 55 | . 1 3 12 5 1 . . 7 1 3 2 . 8 . . . . . . . 12 AOE 40 | . . 5 3 . . . . 2 . 4 . . 14 . 7 . . . . 5 . Classes Destroyed 26 | 2 3 2 7 1 2 2 . 2 . 1 . . 2 . . 1 . . . 1 . Worker 15 | . . . 2 3 . . . . . . . . . 8 1 . . . . 1 . Builder 10 | . . . 1 . . . . . . . . . . 3 1 . . . . 1 4 Tunneler 2 | 2 . . . . . . . . . . . . . . . . . . . . . Hauler 10 | . 1 . 3 2 . . . . 1 . . . . 2 . . . . . 1 . Recycler 10 | 1 1 . 5 1 . . . . . . . . . . . . . . . . 2 Minesweeper 1 | . . . . . . . . 1 . . . . . . . . . . . . . Mechanic 5 | . . . . . . . . 1 . . . . . . . . . . . 1 3 Operator 3 | . . . 1 . . . . . . . . . . 1 . . . . . . 1 Watcher 13 | . . . 3 1 . . . . . . . . . 2 . . . . 1 1 5 Swarmer 33 | . 3 3 4 1 . . . 2 . . . . 1 . . . . . . 4 15 Grunt 83 | . 4 . 8 6 . . . 3 . 5 1 . 13 6 9 . . . . 7 21 Brawler 11 | . . . 1 . . . . 2 . . . . 2 . . . . . . 1 5 Duelist 17 | . . . . . . . . . . 2 . . 4 . 1 . . . . 2 8 Protector 4 | . . . . . . . . . . . . . 1 . 1 . . . . 1 1 Researcher 1 | . . . . . . . . . . . . . . . . . . . . 1 . Sentry 23 | . . . 6 5 . . . 1 1 . . . 2 1 . . . . . . 7 Hunter 17 | . . . 1 . . . . . . . . . 2 2 4 . . . . . 8 Programmer 46 | . . . . 1 . . . 1 . . . . 2 8 3 . . . . 10 21 Behemoth 2 | . . . . . 1 . . . . . . . . . . . . . . . 1 Artisan 1 | . . 1 . . . . . . . . . . . . . . . . . . . Subdweller 9 | . . 9 . . . . . . . . . . . . . . . . . . . Packrat 1 | . . . . . . . . 1 . . . . . . . . . . . . . Samaritan 5 | . . . . . 3 . . . . . 2 . . . . . . . . . . Tinkerer 1 | . . . . . . . . . . . . . 1 . . . . . . . . Thief 1 | . . . . . . 1 . . . . . . . . . . . . . . . Martyr 2 | . . . . . . . . . . . . . . . . 2 . . . . . Mutant 2 | . . . . . . 1 . . . . 1 . . . . . . . . . . Best Kill Streak 12 | 2 3 4 8 7 1 1 . 3 1 4 1 . 8 4 7 . . . 1 12 7 Combat Bots Only 11 | . 3 4 5 3 1 1 . 2 1 4 1 . 8 3 6 . . . . 11 5 Max Kills in Single Turn 4 | 1 1 3 3 4 1 1 . 2 1 2 1 . 1 2 3 1 . . 1 4 2 Gunslinging 1 | . . . . . . . . . . . . . . 1 . . . . . 1 1 Exploded 3 | . . 3 2 . . . . 2 . 2 . . 1 . 2 . . . . 3 . Melee 1 | . . . . . . . . . . . . . . . . . . . . . 1 Uniques/NPCs Destroyed . | . . . . . . . . . . . . . . . . . . . . . . Combat | -11 -10 -10 -8 -7 -7 -7 -7 -6 -6 -6 -6 -6 -5 -5 -4 -4 -4 -4 -3 -3 -2 -------- Run | Yrd Mat Sub Mat Fac Low Low Zio Pro Fac Low Low Dat Pro Fac Fac Was Fac DSF Res Tes Res Hostile Shots Fired 2320 | . 26 62 97 224 53 4 . 81 18 7 21 . 150 68 234 . . . 4 174 1097 Missed 668 | . 4 21 32 90 20 1 . 27 5 2 3 . 48 18 79 . . . 1 42 275 Damage Taken 30385 | . 267 1102 867 1128 518 31 . 845 95 73 210 . 1911 636 3152 . . . 6 1630 17914 Core 2168 | . . 220 76 53 . . . 30 5 . 32 . 94 27 94 . . . . 65 1472 Absorbed by Shields 3443 | . . . . . . . . 187 . 20 77 . 306 216 . . . . . 169 2468 Reduced by Siege Mode 760 | . . . . . . . . . . . . . . . . . . . . 73 687 Redirected to Shielding 154 | . . 8 . . . . . . . . . . . . . . . . . . 146 Ignored by Resistances 1507 | . . . . 85 138 . . 41 . . . . 22 72 . . . . 65 1072 12 Regen/Repaired (Parts) 486 | . 131 . . . . . . . 137 . . . . 218 . . . . . . . Core Remaining (%) 81 | 100 . 12 86 . . . . 88 . . . . 84 97 . . . 91 . 95 . Volleys Fired 788 | 8 40 44 70 47 15 2 3 39 8 10 28 . 61 52 48 . . 1 1 64 247 Largest 4 | 2 2 2 3 3 3 2 1 3 3 3 3 . 4 4 4 . . 4 4 4 4 Hottest 351 | 40 95 95 170 154 104 76 63 181 181 181 181 . 239 239 222 . . 129 289 291 351 Shots Fired 2217 | 16 80 74 175 141 45 3 3 111 24 26 52 . 149 160 159 . . 4 4 182 809 Gun 1546 | 16 76 26 68 122 30 1 . 1 . . . . 46 155 148 . . 4 4 159 690 Cannon 620 | . 4 42 104 19 15 2 3 109 24 24 52 . 81 5 . . . . . 18 118 Launcher 51 | . . 6 3 . . . . 1 . 2 . . 22 . 11 . . . . 5 1 Special . | . . . . . . . . . . . . . . . . . . . . . . Kinetic 1122 | 16 78 60 98 103 45 3 . 75 16 16 24 . 92 77 136 . . 4 1 43 235 Thermal 1032 | . 2 8 77 38 . . . 35 8 8 28 . 35 83 12 . . . 3 134 561 Explosive 48 | . . 6 . . . . . 1 . 2 . . 22 . 11 . . . . 5 1 Electromagnetic 15 | . . . . . . . 3 . . . . . . . . . . . . . 12 Robot Hit Streak 47 | 5 19 14 16 32 47 4 . 7 5 10 23 . 24 24 8 . . 3 2 18 24 Robot Miss Streak 6 | 3 6 2 5 3 1 . . 3 2 2 2 . 3 3 6 . . 1 2 3 4 Penetration Max 1 | . . . . . . . . 1 . . . . . 1 1 . . . . 1 1 Secondary Targets 34 | . . . . . . . . . . . . . . 3 4 . . . . 8 19 Max Gunslinging Chain 2 | . . . . . . . . . . . . . . 1 1 . . . . 2 1 Shots Hit Robots 1478 | 9 54 56 98 110 45 7 . 69 14 16 47 . 90 107 92 4 . 2 2 122 534 Core Hits 681 | 6 22 22 50 38 5 1 . 23 5 13 10 . 81 51 56 . . 1 2 63 232 Critical Kills 27 | . . . 3 1 . . . . . . . . . 1 2 . . . . 2 18 Critical Parts Destroyed 48 | . . 1 . . 2 . . . . . . . . 5 4 3 . 1 . 2 30 Critical Strikes 107 | . . 2 9 2 5 1 . 3 1 1 . . 2 9 7 3 . 1 . 5 56 Burn 11 | . . . 3 1 . . . . . . . . . 3 1 . . . . 1 2 Meltdown 3 | . . . 2 . . . . . . . . . . . . . . . . . 1 Destroy 70 | . . 1 1 1 1 . . . . . . . . 6 6 . . 1 . 4 49 Blast 14 | . . 1 3 . 3 . . 3 1 1 . . 2 . . . . . . . . Smash 9 | . . . . . 1 1 . . . . . . . . . 3 . . . . 4 Melee Attacks 97 | . . 20 . 5 4 6 6 . . . 8 . . 9 2 4 . . 1 3 29 Impact 89 | . . 20 . 5 4 6 6 . . . 2 . . 9 . 4 . . 1 3 29 Slashing . | . . . . . . . . . . . . . . . . . . . . . . Piercing . | . . . . . . . . . . . . . . . . . . . . . . Sneak Attacks 17 | . . 1 . . 3 1 . . . . 6 . . . 2 4 . . . . . Combat Hostiles . | . . . . . . . . . . . . . . . . . . . . . . Follow-up Attacks . | . . . . . . . . . . . . . . . . . . . . . . Damage Inflicted 49692 | 84 491 1421 2340 2626 1281 377 . 2192 389 686 1150 . 4552 3678 4382 341 . 65 60 5805 17772 Guns 28177 | 84 433 435 630 1826 616 22 . . . . . . 610 3544 2455 . . 65 60 3535 13862 Cannons 11228 | . 55 603 1458 425 407 55 . 2030 389 445 1150 . 1108 23 . . . . . 133 2947 Explosions 9148 | . . 383 252 350 . . . 162 . 241 . . 2834 111 1927 . . . . 2137 751 Melee 1101 | . . . . . 258 300 . . . . . . . . . 341 . . . . 202 Ramming 38 | . 3 . . 25 . . . . . . . . . . . . . . . . 10 Kinetic 18291 | 84 470 968 1268 1683 1023 77 . 1415 286 340 468 . 1252 2119 2251 . . 65 . 851 3671 Thermal 22097 | . 18 70 1072 568 . . . 615 103 105 682 . 466 1559 882 . . . 60 2817 13080 Explosive 7871 | . . 383 . 350 . . . 162 . 241 . . 2834 . 1247 . . . . 2137 517 Electromagnetic 294 | . . . . . . . . . . . . . . . 2 . . . . . 292 Impact 1101 | . . . . . 258 300 . . . . . . . . . 341 . . . . 202 Slashing . | . . . . . . . . . . . . . . . . . . . . . . Piercing . | . . . . . . . . . . . . . . . . . . . . . . Highest Corruption 60 | . . . . 1 1 1 . 9 . . . . 3 4 6 6 6 6 . 1 60 Average Corruption 10 | . . . . 1 1 1 . 9 . . . . 2 2 4 6 6 6 . 1 22 Corruption Purged 1 | . . . . . . 1 . . . . . . . . . . . . . . . Corruption Blocked . | . . . . . . . . . . . . . . . . . . . . . . Effects 285 | . . . . 6 8 2 . 30 . . . . 5 18 14 8 3 4 . 4 183 Message Errors 51 | . . . . 1 2 . . 7 . . . . . 4 6 3 1 1 . . 26 Matter Fused 72 | . . . . 4 1 1 . 8 . . . . 2 7 4 2 1 1 . 1 40 Heat Flow Errors 24 | . . . . . 1 . . 5 . . . . . 3 2 1 1 1 . . 10 Energy Discharges 26 | . . . . 1 2 1 . 5 . . . . . 1 . . . 1 . 1 14 Parts Rejected 4 | . . . . . . . . . . . . . . . . . . . . . 4 Parts Fused 4 | . . . . . . . . . . . . . . . . . . . . . 4 Data Loss (minor) 27 | . . . . . . . . 1 . . . . 3 1 . 1 . . . 1 20 Data Loss (major) 8 | . . . . . 1 . . . . . . . . . . 1 . . . . 6 Misfires 11 | . . . . . . . . 2 . . . . . . . . . . . . 9 Alerts 7 | . . . . . 1 . . . . . . . . 1 . . . . . 1 4 Misdirections 3 | . . . . . . . . . . . . . . . . . . . . . 3 Weapon Failures 48 | . . . . . . . . 2 . . . . . 1 2 . . . . . 43 Overload Shots . | . . . . . . . . . . . . . . . . . . . . . . Overflow Damage 1882 | . . 8 2 3 233 141 . 175 . 5 148 . 106 36 253 286 . . . 188 298 Projectiles 407 | . . . 2 3 . . . 123 . 3 148 . 37 . . . . . . 30 61 Explosions 640 | . . 8 . . . . . 52 . 2 . . 69 36 253 . . . . 158 62 Melee 835 | . . . . . 233 141 . . . . . . . . . 286 . . . . 175 Knockbacks 52 | . . 7 3 . . 4 . 16 1 6 . . 10 . . 4 . . . . 1 Impact 5 | . . . . . . 2 . . . . . . . . . 2 . . . . 1 Kinetic 42 | . . 7 3 . . 2 . 15 1 5 . . 9 . . . . . . . . Secondary 5 | . . . . . . . . 1 . 1 . . 1 . . 2 . . . . . Self-Inflicted Damage 493 | . . 60 . . . . . . . . . . 233 . 200 . . . . . . Shots 17 | . . 2 . . . . . . . . . . 8 . 7 . . . . . . Rammed 2 | . 1 . . 1 . . . . . . . . . . . . . . . . . Targets Rammed 3 | . 1 . . 1 . . . . . . . . . . . . . . . . 1 Kicked . | . . . . . . . . . . . . . . . . . . . . . . Crushed 1 | . . . . . . . . . . . . . . . . . . . . . 1 Highest Temperature 579 | . 33 . 331 78 161 . . 316 108 99 253 . 180 438 315 178 268 272 171 470 579 Average Temperature 97 | . 12 . 91 19 94 . . 91 50 38 90 . 46 92 82 90 135 107 69 110 118 Received Heat Transfer 5606 | . 99 123 315 366 84 . . 355 30 47 186 . 360 68 640 . . . . 324 2609 Effects 32 | . . . 5 . . . . 1 . . . . . 2 . . 1 . . 7 16 Shutdowns 16 | . . . . . . . . . . . . . . 2 . . . . . 2 12 Energy Bleed 3 | . . . . . . . . 1 . . . . . . . . 1 . . . 1 Interference 9 | . . . 5 . . . . . . . . . . . . . . . . 4 . Matter Decay 2 | . . . . . . . . . . . . . . . . . . . . 1 1 Damage (minor) 2 | . . . . . . . . . . . . . . . . . . . . . 2 Siege Activations 8 | . . . . . . . . . . . . . . . . . . . 1 1 6 Total Turns 229 | . . . . . . . . . . . . . . . . . . . 44 20 165 Longest Duration 44 | . . . . . . . . . . . . . . . . . . . 44 20 44 Robots Corrupted 10 | . . . . . 3 2 . . . . . . . . . 2 . . . . 3 Combat Hostiles 4 | . . . . . . 1 . . . . . . . . . . . . . . 3 Parts Fried 12 | . . . . . 2 4 . . . . . . . . . 5 . . . . 1 Impact Corruptions 39 | . . . . . 26 5 . . . . . . . . . 4 . . . . 4 Robots Melted 6 | . . . 2 . . . . . . . . . . . . . . . . . 4 Combat Hostiles 6 | . . . 2 . . . . . . . . . . . . . . . . . 4 Parts Melted 65 | . . 1 6 1 . . . . . . 1 . . 4 . . . . . 11 41 Heat Transferred 28469 | . 37 148 2146 1073 . . . 1200 200 200 1350 . 880 2542 633 . . . 74 3312 14674 Parts Sabotaged . | . . . . . . . . . . . . . . . . . . . . . . Parts Stolen 1 | . . . . . . 1 . . . . . . . . . . . . . . . Parts Stripped . | . . . . . . . . . . . . . . . . . . . . . . Power Chain Reactions 2 | . . . . . . . . . . . . . . . 1 . . . . . 1 Alert | -11 -10 -10 -8 -7 -7 -7 -7 -6 -6 -6 -6 -6 -5 -5 -4 -4 -4 -4 -3 -3 -2 ------- Run | Yrd Mat Sub Mat Fac Low Low Zio Pro Fac Low Low Dat Pro Fac Fac Was Fac DSF Res Tes Res Peak Influence 1976 | 15 158 . 555 337 . . . . 193 . . . . 643 1213 431 161 456 280 541 1976 Initial 421 | . 9 . . 173 . . . . 70 . . . . 98 315 421 161 116 256 101 303 Average 450 | 4 38 . 371 192 . . . . 109 . . . . 204 733 402 161 311 198 346 1029 Maximum Alert Level 5 | . . . 2 1 . . . . . . . . . 2 4 2 . 2 1 2 5 Low Security (%) 38 | 100 100 . 19 58 . . . . 100 . . . . 66 . . 100 25 49 28 . Level 1 17 | . . . 21 41 . . . . . . . . . 8 25 13 . 43 50 22 10 Level 2 23 | . . . 58 . . . . . . . . . . 24 27 86 . 30 . 49 19 Level 3 8 | . . . . . . . . . . . . . . . 33 . . . . . 26 Level 4 8 | . . . . . . . . . . . . . . . 13 . . . . . 30 Level 5 2 | . . . . . . . . . . . . . . . . . . . . . 10 High Security . | . . . . . . . . . . . . . . . . . . . . . 2 Max Security . | . . . . . . . . . . . . . . . . . . . . . . Sterilizations 1 | . . . . . . . . . . . . . . . . . . 1 . . . Squads Dispatched 55 | . 1 . 1 5 . . . 1 1 . . . 1 8 3 . . 2 2 7 23 Investigation 2 | . . . . 1 . . . . . . . . . 1 . . . . . . . Extermination 17 | . . . . 1 . . . . . . . . . 2 1 . . . 2 3 8 Reinforcement 10 | . 1 . 1 . . . . . 1 . . . . 1 1 . . 2 . 3 . Assault 14 | . . . . . . . . 1 . . . . 1 1 1 . . . . 1 9 Garrison 12 | . . . . 3 . . . . . . . . . 3 . . . . . . 6 Intercept . | . . . . . . . . . . . . . . . . . . . . . . Searches Triggered . | . . . . . . . . . . . . . . . . . . . . . . Data Miner Redirects 5 | . . . . . . . . . . . . . . . 1 . . . . . 4 Construction Impeded 2 | . . . . . . . . . . . . . . . 1 . . . . 1 . Haulers Reinforced 1 | . . . . . . . . . . . . . . 1 . . . . . . . Active Scanning Responses . | . . . . . . . . . . . . . . . . . . . . . . Cargo Convoy Interrupts . | . . . . . . . . . . . . . . . . . . . . . . Stealth | -11 -10 -10 -8 -7 -7 -7 -7 -6 -6 -6 -6 -6 -5 -5 -4 -4 -4 -4 -3 -3 -2 --------- Run | Yrd Mat Sub Mat Fac Low Low Zio Pro Fac Low Low Dat Pro Fac Fac Was Fac DSF Res Tes Res Distress Signals 12 | . 1 . 5 . . . . . . . . . . 1 . . . . . 2 3 Communications Jammed 164 | . . . . . . . . . . . . . . . . . . . . . 164 Distress Signals 162 | . . . . . . . . . . . . . . . . . . . . . 162 Times Spotted 375 | . 14 13 36 17 1 2 . 24 4 7 2 . 33 22 21 . . 7 2 31 139 Peak Tracking Total 9 | . 3 4 5 5 1 1 . 8 1 4 1 . 9 5 6 . . 4 1 7 8 Tactical Retreats 18 | . . . 2 1 . . . 1 . . . . 3 . . . . . . . 11 Traps | -11 -10 -10 -8 -7 -7 -7 -7 -6 -6 -6 -6 -6 -5 -5 -4 -4 -4 -4 -3 -3 -2 ------- Run | Yrd Mat Sub Mat Fac Low Low Zio Pro Fac Low Low Dat Pro Fac Fac Was Fac DSF Res Tes Res Traps Triggered 15 | . 1 3 1 1 . . . . . . . . . 3 1 . . 1 2 1 1 Indirectly . | . . . . . . . . . . . . . . . . . . . . . . Trap Hack Attempts . | . . . . . . . . . . . . . . . . . . . . . . Triggered . | . . . . . . . . . . . . . . . . . . . . . . Disarmed . | . . . . . . . . . . . . . . . . . . . . . . Reprogrammed . | . . . . . . . . . . . . . . . . . . . . . . Reused . | . . . . . . . . . . . . . . . . . . . . . . Traps Extracted . | . . . . . . . . . . . . . . . . . . . . . . Installed . | . . . . . . . . . . . . . . . . . . . . . . Triggered 5 | . . . . . . 1 . . . 2 2 . . . . . . . . . . Machines | -11 -10 -10 -8 -7 -7 -7 -7 -6 -6 -6 -6 -6 -5 -5 -4 -4 -4 -4 -3 -3 -2 ---------- Run | Yrd Mat Sub Mat Fac Low Low Zio Pro Fac Low Low Dat Pro Fac Fac Was Fac DSF Res Tes Res Machines Disabled 63 | . . . 4 4 . . 1 1 4 . 2 . 2 14 23 . . . . 4 4 Max in Single Turn 13 | . . . 2 2 . . 1 1 2 . 1 . 1 5 13 . . . . 1 1 Garrison Access 4 | . . . 1 . . . . . 1 . . . . . 1 . . . . . 1 Machines Repaired . | . . . . . . . . . . . . . . . . . . . . . . Machines Dismantled . | . . . . . . . . . . . . . . . . . . . . . . Machines Sabotaged . | . . . . . . . . . . . . . . . . . . . . . . Overloaded Fab Kills . | . . . . . . . . . . . . . . . . . . . . . . Hacking | -11 -10 -10 -8 -7 -7 -7 -7 -6 -6 -6 -6 -6 -5 -5 -4 -4 -4 -4 -3 -3 -2 --------- Run | Yrd Mat Sub Mat Fac Low Low Zio Pro Fac Low Low Dat Pro Fac Fac Was Fac DSF Res Tes Res Machines Accessed 40 | . 8 . 5 5 . . 1 . 3 . . 4 . 3 2 . 1 . 3 . 5 Terminals 20 | . 6 . 4 3 . . . . . . . . . . 1 . 1 . 1 . 4 Fabricators . | . . . . . . . . . . . . . . . . . . . . . . Repair Stations 6 | . 1 . . . . . . . 2 . . . . 1 . . . . 1 . 1 Recycling Units 4 | . 1 . . 2 . . . . . . . . . . . . . . 1 . . Scanalyzers 1 | . . . . . . . . . . . . . . 1 . . . . . . . Garrison Access 4 | . . . 1 . . . . . 1 . . . . 1 1 . . . . . . Total Hacks 113 | . 26 . 12 16 . . 4 . 6 . . 24 . 7 5 . 1 . 6 . 6 Successful 70 | . 14 . 7 7 . . 4 . 3 . . 24 . 4 3 . 1 . 2 . 1 Failed 43 | . 12 . 5 9 . . . . 3 . . . . 3 2 . . . 4 . 5 Catastrophic 12 | . 3 . 1 . . . . . . . . . . 1 2 . . . 1 . 4 Database Lockouts . | . . . . . . . . . . . . . . . . . . . . . . Manual 27 | . 10 . 7 4 . . . . . . . . . . 3 . . . . . 3 Terminals 52 | . 20 . 10 10 . . . . . . . . . . 4 . 1 . 3 . 4 Fabricators . | . . . . . . . . . . . . . . . . . . . . . . Repair Stations 17 | . 5 . . . . . . . 4 . . . . 4 . . . . 2 . 2 Recycling Units 8 | . 1 . . 6 . . . . . . . . . . . . . . 1 . . Scanalyzers 1 | . . . . . . . . . . . . . . 1 . . . . . . . Garrison Access 7 | . . . 2 . . . . . 2 . . . . 2 1 . . . . . . Terminal Hacks 45 | . 7 . 4 4 . . 4 . . . . 24 . . 1 . 1 . . . . Record 8 | . . . . . . . . . . . . 7 . . 1 . . . . . . Part Schematic 13 | . . . 1 . . . 4 . . . . 8 . . . . . . . . . Robot Schematic 6 | . . . . . . . . . . . . 6 . . . . . . . . . Robot Analysis 4 | . 3 . 1 . . . . . . . . . . . . . . . . . . Prototype ID Bank 5 | . 1 . 1 . . . . . . . . 3 . . . . . . . . . Open DSF 1 | . . . . . . . . . . . . . . . . . 1 . . . . Branch Access Points 3 | . 1 . 1 1 . . . . . . . . . . . . . . . . . Alert Level 1 | . . . . 1 . . . . . . . . . . . . . . . . . Unreport Threat 1 | . . . . 1 . . . . . . . . . . . . . . . . . Locate Traps 2 | . 2 . . . . . . . . . . . . . . . . . . . . Hauler Manifests 1 | . . . . 1 . . . . . . . . . . . . . . . . . Fabricator Hacks . | . . . . . . . . . . . . . . . . . . . . . . Repair Station Hacks 13 | . 5 . . . . . . . 2 . . . . 4 . . . . 1 . 1 Scan Component 8 | . 3 . . . . . . . 1 . . . . 2 . . . . 1 . 1 Repair 5 | . 2 . . . . . . . 1 . . . . 2 . . . . . . . Recycling Unit Hacks 2 | . . . . 1 . . . . . . . . . . . . . . 1 . . Retrieve Components 2 | . . . . 1 . . . . . . . . . . . . . . 1 . . Scanalyzer . | . . . . . . . . . . . . . . . . . . . . . . Garrison Access Hacks 3 | . . . 1 . . . . . 1 . . . . . 1 . . . . . . Seal Access 3 | . . . 1 . . . . . 1 . . . . . 1 . . . . . . Unauthorized Hacks 7 | . 2 . 2 2 . . . . . . . . . . 1 . . . . . . Terminals 7 | . 2 . 2 2 . . . . . . . . . . 1 . . . . . . Botnet 6 | . 2 . 2 1 . . . . . . . . . . 1 . . . . . . Skim 1 | . . . . 1 . . . . . . . . . . . . . . . . . Fabricators . | . . . . . . . . . . . . . . . . . . . . . . Repair Stations . | . . . . . . . . . . . . . . . . . . . . . . Recycling Units . | . . . . . . . . . . . . . . . . . . . . . . Scanalyzers . | . . . . . . . . . . . . . . . . . . . . . . Garrison Access . | . . . . . . . . . . . . . . . . . . . . . . Data Cores Recovered 1 | . . . . . . . . . . . . . . 1 . . . . . . . Used . | . . . . . . . . . . . . . . . . . . . . . . Hacking Detections 28 | . 8 . 2 5 . . . . 3 . . . . 2 1 . . . 2 . 5 Full Trace Events 1 | . 1 . . . . . . . . . . . . . . . . . . . . Feedback Events . | . . . . . . . . . . . . . . . . . . . . . . Feedback Blocked . | . . . . . . . . . . . . . . . . . . . . . . Robot Schematics Acquired 6 | . . . . . . . . . . . . 6 . . . . . . . . . Robots Built . | . . . . . . . . . . . . . . . . . . . . . . Authchips . | . . . . . . . . . . . . . . . . . . . . . . Time . | . . . . . . . . . . . . . . . . . . . . . . Total Robot Build Rating . | . . . . . . . . . . . . . . . . . . . . . . Part Schematics Acquired 15 | . . . 1 . . . 4 . . . . 8 . . . . . . . 2 . Parts Built . | . . . . . . . . . . . . . . . . . . . . . . Authchips . | . . . . . . . . . . . . . . . . . . . . . . Time . | . . . . . . . . . . . . . . . . . . . . . . Total Part Build Rating . | . . . . . . . . . . . . . . . . . . . . . . Parts Repaired 5 | . 2 . . . . . . . 1 . . . . 2 . . . . . . . Time 159 | . 52 . . . . . . . 25 . . . . 82 . . . . . . . Parts Recycled . | . . . . . . . . . . . . . . . . . . . . . . Recycled Matter . | . . . . . . . . . . . . . . . . . . . . . . Retrieved Matter . | . . . . . . . . . . . . . . . . . . . . . . Retrieved Components 5 | . . . . 3 . . . . . . . . . . . . . . 2 . . Parts Scanalyzed . | . . . . . . . . . . . . . . . . . . . . . . Part Schematics Acquired . | . . . . . . . . . . . . . . . . . . . . . . Parts Damaged . | . . . . . . . . . . . . . . . . . . . . . . Bothacking | -11 -10 -10 -8 -7 -7 -7 -7 -6 -6 -6 -6 -6 -5 -5 -4 -4 -4 -4 -3 -3 -2 ------------ Run | Yrd Mat Sub Mat Fac Low Low Zio Pro Fac Low Low Dat Pro Fac Fac Was Fac DSF Res Tes Res Used RIF Installer . | . . . . . . . . . . . . . . . . . . . . . . Robots Hacked 2 | . . . . . . . . . . . . . . . 2 . . . . . . Non-combat 2 | . . . . . . . . . . . . . . . 2 . . . . . . Combat . | . . . . . . . . . . . . . . . . . . . . . . Robot Hacks Applied 2 | . . . . . . . . . . . . . . . 2 . . . . . . find_chute 2 | . . . . . . . . . . . . . . . 2 . . . . . . Relay Couplers Released 1 | . . . . . . . . . . . . . . . . . . . . . 1 Machine Destruction 1 | . . . . . . . . . . . . . . . . . . . . . 1 Fabnet Peak Effective % . | . . . . . . . . . . . . . . . . . . . . . . Robots Rewired 6 | . . . . . . . . 1 . . 4 . 1 . . . . . . . . Allies Hacked . | . . . . . . . . . . . . . . . . . . . . . . Hacks Repelled . | . . . . . . . . . . . . . . . . . . . . . . Allies | -11 -10 -10 -8 -7 -7 -7 -7 -6 -6 -6 -6 -6 -5 -5 -4 -4 -4 -4 -3 -3 -2 -------- Run | Yrd Mat Sub Mat Fac Low Low Zio Pro Fac Low Low Dat Pro Fac Fac Was Fac DSF Res Tes Res Total Allies 36 | . . . . . . . 10 1 . . 4 . 1 . . 20 . . . . . Largest Group 20 | . . . . . . . 10 9 1 1 4 4 4 . . 20 18 18 8 4 . Highest-Rated Group 798 | . . . . . . . 268 237 32 32 106 106 106 . . 798 698 698 363 179 . Highest-Rated Ally 50 | . . . . . . . 31 32 32 32 31 31 31 . . 50 46 46 46 46 . Total Orders 12 | . . . . . . . . . 1 . . . . 9 . . . . . 1 1 ROAM 2 | . . . . . . . . . . . . . . 2 . . . . . . . EXPLORE 1 | . . . . . . . . . . . . . . 1 . . . . . . . RETURN 9 | . . . . . . . . . 1 . . . . 6 . . . . . 1 1 Ally Attacks 333 | . . . . . . . . 99 2 8 . . 13 . . 9 . 132 46 24 . Total Damage 7085 | . . . . . . . . 1797 44 259 . . 236 . . 192 . 3059 958 540 . Kills 36 | . . . . . . . . 12 . 1 . . 2 . . 1 . 12 4 4 . Allies Corrupted 4 | . . . . . . . . 2 . . . . . . . 2 . . . . . Allies Melted . | . . . . . . . . . . . . . . . . . . . . . . Intel | -11 -10 -10 -8 -7 -7 -7 -7 -6 -6 -6 -6 -6 -5 -5 -4 -4 -4 -4 -3 -3 -2 ------- Run | Yrd Mat Sub Mat Fac Low Low Zio Pro Fac Low Low Dat Pro Fac Fac Was Fac DSF Res Tes Res Robot Analysis Total 4 | . 3 . 1 . . . . . . . . . . . . . . . . . . Derelict Logs Recovered 10 | . . 2 . . . 3 2 1 . . 1 . 1 . . . . . . . . Drone Launches 10 | . . . . . . . . . 1 . . . . 7 . . . . . 1 1 Drone Recoveries 10 | . . . . . . . . . 1 . . . . 7 . . . . . 1 1 Exploration | -11 -10 -10 -8 -7 -7 -7 -7 -6 -6 -6 -6 -6 -5 -5 -4 -4 -4 -4 -3 -3 -2 ------------- Run | Yrd Mat Sub Mat Fac Low Low Zio Pro Fac Low Low Dat Pro Fac Fac Was Fac DSF Res Tes Res Turns Passed 23608 | 158 1305 1524 1606 1480 700 1306 1892 1102 415 713 1172 146 1845 1840 514 460 80 204 786 999 3361 Spaces Moved 11862 | 76 532 995 759 713 389 693 1339 486 231 417 656 89 964 932 161 222 43 77 417 432 1239 Core 6 | 3 . . . . . . . . . . . . . . . . . . . . 3 Treads 6240 | 73 532 123 . 638 389 605 . 284 16 417 656 89 250 4 31 . . 48 417 432 1236 Legs 1 | . . . 1 . . . . . . . . . . . . . . . . . . Wheels 5615 | . . 872 758 75 . 88 1339 202 215 . . . 714 928 130 222 43 29 . . . Hover . | . . . . . . . . . . . . . . . . . . . . . . Flight . | . . . . . . . . . . . . . . . . . . . . . . Fastest Speed 50 | 50 160 95 110 160 160 150 120 135 130 160 160 162 145 116 175 175 190 190 162 162 100 Average Speed 156 | 155 160 126 148 161 160 181 135 193 142 160 161 162 158 142 189 181 190 216 162 162 167 Slowest Speed 500 | 160 240 260 190 240 160 240 150 240 240 160 162 162 190 305 250 190 190 254 162 162 500 Overloaded Moves . | . . . . . . . . . . . . . . . . . . . . . . Propulsion Burnouts . | . . . . . . . . . . . . . . . . . . . . . . Robots Hopped . | . . . . . . . . . . . . . . . . . . . . . . Cave-ins Triggered . | . . . . . . . . . . . . . . . . . . . . . . Exploration Rate (%) 48 | 5 69 61 48 14 58 80 86 70 8 63 66 70 74 26 8 89 3 73 12 49 38 Regions Visited 21 Branch Regions 10 Pre-discovered Areas 5 | . . 1 . . . 1 1 1 . . . 1 . . . . . . . . . Known Exits Taken 6 | . . . 1 1 . . . 1 . . . . 1 1 . . 1 . . . . Unknown Exits Taken 12 | 1 1 1 . . 1 1 1 . 1 1 1 1 . . . . . . 1 1 . Scrap Searched 31 | . . 12 . . 1 6 2 3 . 3 1 . 3 . . . . . . . . Spaces Dug 121 | . . 5 9 5 1 2 . 1 . . 1 . 1 12 41 . . . 1 16 26 Terrain Destroyed 928 | . . 38 61 26 2 2 . 35 16 27 7 . 236 116 193 . . . 1 58 110 Melee 49 | . . 4 . 5 1 2 . . . . 1 . . 9 . . . . 1 3 23 Projectile 300 | . . 2 22 . 1 . . 27 1 6 6 . 35 63 51 . . . . 20 66 AOE 578 | . . 32 39 21 . . . 8 15 21 . . 201 44 142 . . . . 35 20 Terrain Rammed . | . . . . . . . . . . . . . . . . . . . . . . Walls Destroyed . | . . . . . . . . . . . . . . . . . . . . . . Machines Disabled . | . . . . . . . . . . . . . . . . . . . . . . Actions | -11 -10 -10 -8 -7 -7 -7 -7 -6 -6 -6 -6 -6 -5 -5 -4 -4 -4 -4 -3 -3 -2 --------- Run | Yrd Mat Sub Mat Fac Low Low Zio Pro Fac Low Low Dat Pro Fac Fac Was Fac DSF Res Tes Res Total 15101 | 100 921 1153 1115 925 421 726 1400 567 299 440 717 91 1165 1324 259 280 42 116 524 606 1910 Wait 1249 | 2 320 27 157 88 . 7 34 2 34 3 6 3 93 198 7 . . 4 76 39 149 Move 11842 | 75 531 994 758 712 388 692 1338 485 230 416 655 88 963 931 161 221 42 76 416 431 1239 Hop . | . . . . . . . . . . . . . . . . . . . . . . Pick Up 233 | 8 13 19 29 15 2 7 3 1 4 . 1 . 8 19 9 8 . 7 7 11 62 Fast Attach 165 | 6 3 4 22 14 1 3 3 5 7 . 4 . 2 23 4 8 . 7 4 5 40 Attach 125 | 1 1 6 9 3 2 2 1 1 1 . 1 . 11 3 7 3 . 2 2 9 60 Detach 51 | . . 1 6 2 . 1 1 . 3 . 1 . 2 7 3 3 . 2 3 5 11 Swap 231 | . 3 21 14 11 8 3 5 6 5 9 8 . 14 32 14 3 . 3 6 28 38 Drop 260 | . 9 17 49 27 1 3 6 9 7 2 3 . 1 34 4 23 . 14 8 9 34 Fire 788 | 8 40 44 70 47 15 2 3 39 8 10 28 . 61 52 48 . . 1 1 64 247 Melee 97 | . . 20 . 5 4 6 6 . . . 8 . . 9 2 4 . . 1 3 29 Ram . | . . . . . . . . . . . . . . . . . . . . . . Kick . | . . . . . . . . . . . . . . . . . . . . . . Crush 3 | . 1 . . 1 . . . . . . . . . . . . . . . . 1 Escape Stasis 16 | . . . . . . . . . . . . . . 16 . . . . . . . Rewire 40 | . . . . . . . . 19 . . 2 . 10 . . 7 . . . 2 . Trap . | . . . . . . . . . . . . . . . . . . . . . . Miscellaneous 1 | . . . 1 . . . . . . . . . . . . . . . . . . Route ------- -11/Scrapyard -10/Materials (discovered 4 exits: [*Mat] / *Min x2 / [*Sub]) -10/Subcaves -8/Materials -7/Factory (discovered 3 exits: *Fac / *Low x2) -7/Lower Caves -7/Lower Caves (discovered 2 exits: *Fac / *Zio) -7/Zion -6/Proximity Caves -6/Factory (discovered 2 exits: Fac / [*Low]) -6/Lower Caves -6/Lower Caves -6/Data Miner -5/Proximity Caves -5/Factory (discovered 5 exits: *Fac x4 / [*Upp]) -4/Factory -4/Waste -4/Factory -4/DSF -3/Research -3/Testing -2/Research History --------- Turn | Location | Event 44 | -11/Scrapyard | Discovered new exit (range 16) 159 | -11/Scrapyard | Entered Materials 172 | -10/Materials | Discovered new exit (range 5) 270 | -10/Materials | Identified exit to Mines 300 | -10/Materials | Build established: Mutant 1016 | -10/Materials | Repaired Lgt. Treads 1045 | -10/Materials | Repaired Ion Engine 1061 | -10/Materials | Discovered new exit (range 16) 1450 | -10/Materials | Discovered new exit (range 10) 1464 | -10/Materials | Entered Subcaves 1533 | -10/Subcaves | Learned Materials stockpile data 1938 | -10/Subcaves | Shifting Twisted Machinery released Mak. Hammer 1951 | -10/Subcaves | Shifting Twisted Machinery released Battle Cannon 1978 | -10/Subcaves | A swath of the cavern ceiling suddenly collapsed 2008 | -10/Subcaves | Disturbed a concealed Subdweller 2180 | -10/Subcaves | Shifting Twisted Machinery released Riot Gun 2194 | -10/Subcaves | Shifting Twisted Machinery released Battle Cannon 2507 | -10/Subcaves | Ambushed by Subdwellers from Twisted Machinery 2552 | -10/Subcaves | Lost 3 parts (1p1u1w) 2607 | -10/Subcaves | A swath of the cavern ceiling suddenly collapsed 2630 | -10/Subcaves | Learned Materials stockpile data 2706 | -10/Subcaves | Lost 4 parts (1p1n2w) 2740 | -10/Subcaves | Learned location of Zion (-7) 2740 | -10/Subcaves | Met a Zionite searching for "candidates" 2748 | -10/Subcaves | Core integrity fell below 50% 2936 | -10/Subcaves | Core integrity fell below 20% 2960 | -10/Subcaves | Discovered new exit (range 7) 2988 | -10/Subcaves | Entered Materials 2988 | -8/Materials | Evolved 4 slots: Propulsion x1, Utility x2, Weapon x1 3998 | -8/Materials | Build established: Tank 4051 | -8/Materials | Discovered new exit (range 14) 4101 | -8/Materials | Identified exit to Factory 4306 | -8/Materials | Build established: Scavenger-Tank 4594 | -8/Materials | Entered Factory 4594 | -7/Factory | Evolved 2 slots: Propulsion x1, Utility x1 5031 | -7/Factory | Discovered new exit (range 16) 5310 | -7/Factory | Identified exit to Factory 5466 | -7/Factory | Identified exit to Lower Caves 5617 | -7/Factory | Garrison activated, responded to threat 5883 | -7/Factory | Build established: Scavenger-Gunner 6074 | -7/Factory | Entered Lower Caves 6195 | -7/Lower Caves | Encountered a Warlord checkpoint 6257 | -7/Lower Caves | Spotted B-75 Beast 6347 | -7/Lower Caves | Destroyed B-75 Beast 6373 | -7/Lower Caves | Lost 3 parts (2n1u) 6655 | -7/Lower Caves | Discovered new exit (range 10) 6744 | -7/Lower Caves | Build established: Mutant 6774 | -7/Lower Caves | Entered another Lower Caves area 6794 | -7/Lower Caves | Discovered exit to Factory (range 14) 6859 | -7/Lower Caves | Learned Factory emergency access door positions 7016 | -7/Lower Caves | Learned 8 Factory zone layouts 7052 | -7/Lower Caves | Encountered a Warlord checkpoint 7086 | -7/Lower Caves | Discovered new exit (range 11) 8080 | -7/Lower Caves | Entered Zion 8122 | -7/Zion | Learned Factory machine intel 8157 | -7/Zion | Given the Hacking Drone Bay 8161 | -7/Zion | Found Prototype Device 8161 | -7/Zion | Identified Hacking Drone Bay 8184 | -7/Zion | Discovered new exit (range 9) 8244 | -7/Zion | Gained Derelict followers 8297 | -7/Zion | Found Prototype Device 8297 | -7/Zion | Identified Mobile Refinery Mk. CCLXVII 8455 | -7/Zion | Build established: Gunner 8533 | -7/Zion | Gained Derelict followers 8658 | -7/Zion | Learned location of Data Miner (-6) 8773 | -7/Zion | Met Imprinter 9566 | -7/Zion | Build established: Tank 9972 | -7/Zion | Entered Proximity Caves 9972 | -6/Proximity Caves | Accompanied by 10 allies 10068 | -6/Proximity Caves | Spotted B-75 Beast 10097 | -6/Proximity Caves | Allies destroyed B-75 Beast 10126 | -6/Proximity Caves | Lost 3 allies 10182 | -6/Proximity Caves | Learned location of Extension (-4) 10246 | -6/Proximity Caves | Attracted the attention of an 0b10 outpost 10304 | -6/Proximity Caves | Lost 4 allies 10695 | -6/Proximity Caves | Build established: Scavenger-Tank 10864 | -6/Proximity Caves | Discovered exit to Factory (range 10) 11074 | -6/Proximity Caves | Entered Factory 11074 | -6/Factory | Accompanied by 1 ally 11074 | -6/Factory | Evolved 2 slots: Utility x2 11075 | -6/Factory | Identified exit to Factory 11077 | -6/Factory | Loaded intel: 242 machine locations 11247 | -6/Factory | Discovered new exit (range 20) 11359 | -6/Factory | Repaired Magnetic Acceleration Cannon 11489 | -6/Factory | Entered Lower Caves 11489 | -6/Lower Caves | Accompanied by 1 ally 11493 | -6/Lower Caves | Found DCF Scrap (13 items) 11824 | -6/Lower Caves | Build established: Derelict-Tank 11992 | -6/Lower Caves | Discovered new exit (range 13) 12202 | -6/Lower Caves | Entered another Lower Caves area 12705 | -6/Lower Caves | Attacked by a delusional Derelict stockpiling Unaware 12773 | -6/Lower Caves | Discovered new exit (range 16) 12807 | -6/Lower Caves | Learned Factory terminal intel 13049 | -6/Lower Caves | Found Alien Artifact 13049 | -6/Lower Caves | Identified Core Expander 13049 | -6/Lower Caves | Installed Core Expander, added new Weapon slot 13374 | -6/Lower Caves | Entered Data Miner 13374 | -6/Data Miner | Accompanied by 4 allies 13374 | -6/Data Miner | Discovered new exit (range 6) 13405 | -6/Data Miner | Met Data Miner 13441 | -6/Data Miner | Learned location of Section 7 (-2) 13441 | -6/Data Miner | Acquired the access code to Warlord's prototype stash 13477 | -6/Data Miner | Received God Mode back door access code from Data Miner 13520 | -6/Data Miner | Entered Proximity Caves 13520 | -5/Proximity Caves | Accompanied by 4 allies 13571 | -5/Proximity Caves | Attracted the attention of an 0b10 outpost 13587 | -5/Proximity Caves | Lost 4 allies 13595 | -5/Proximity Caves | Attracted the attention of an 0b10 checkpoint 13619 | -5/Proximity Caves | Destroyed 8 combat bots 13854 | -5/Proximity Caves | Build established: Scavenger-Tank 14134 | -5/Proximity Caves | Lost 4 parts (1n2u1w) 14886 | -5/Proximity Caves | Learned location of 1 exit from Upper Caves 14891 | -5/Proximity Caves | Received a Behemoth hack from an annoying Tinkerer 14909 | -5/Proximity Caves | P-70 Sage assimilated allied X8-49U(c) 14945 | -5/Proximity Caves | Lost 5 parts (1p2n2w) 15160 | -5/Proximity Caves | Discovered exit to Factory (range 11) 15203 | -5/Proximity Caves | Build established: Derelict-Tank 15365 | -5/Proximity Caves | Entered Factory 15365 | -5/Factory | Evolved 2 slots: Power x1, Utility x1 15366 | -5/Factory | Loaded intel: 26 terminal locations 15462 | -5/Factory | Discovered new exit (range 18) 15805 | -5/Factory | Identified exit to Factory 15911 | -5/Factory | Build established: Scavenger-Gunner 16178 | -5/Factory | Repaired Med. Reactive Plating 16224 | -5/Factory | Repaired Imp. Sensor Array 16504 | -5/Factory | Garrison activated, responded to threat 17165 | -5/Factory | First assault squad dispatched 17205 | -5/Factory | Entered another Factory area 17205 | -4/Factory | Evolved 2 slots: Propulsion x1, Utility x1 17481 | -4/Factory | First assault squad dispatched 17519 | -4/Factory | Incoming assault squad redirected 17719 | -4/Factory | Sucked down chute 17719 | -4/Factory | Entered Waste 17720 | -4/Waste | Joined by Warlord forces that had cleared the area 17769 | -4/Waste | A Compactor rumbled back to life 17889 | -4/Waste | Build established: Gunner 17954 | -4/Waste | Found Unknown Protection 17954 | -4/Waste | Identified Damper Plating 18114 | -4/Waste | Discovered new exit (range 11) 18128 | -4/Waste | Found Prototype Launcher 18128 | -4/Waste | Identified Ragnarok Missile Launcher 18179 | -4/Waste | Entered Factory 18179 | -4/Factory | Accompanied by 18 allies 18259 | -4/Factory | Identified exit to DSF 18259 | -4/Factory | Entered DSF 18259 | -4/DSF | Accompanied by 18 allies 18279 | -4/DSF | Additional patrols routed to DSF 18364 | -4/DSF | Lost 7 allies 18407 | -4/DSF | Sterilization system engaged 18412 | -4/DSF | Discovered new exit (range 15) 18427 | -4/DSF | Ambient heat levels rising (+10) 18442 | -4/DSF | Ambient heat levels rising (+10) 18457 | -4/DSF | Ambient heat levels rising (+10) 18463 | -4/DSF | Entered Research 18463 | -3/Research | Accompanied by 8 allies 18463 | -3/Research | Evolved 2 slots: Propulsion x1, Utility x1 19218 | -3/Research | Discovered new exit (range 13) 19249 | -3/Research | Entered Testing 19249 | -3/Testing | Accompanied by 4 allies 19427 | -3/Testing | Lost 4 allies 19601 | -3/Testing | Destroyed 7 combat bots 19613 | -3/Testing | Spotted PX-VHZN018U1A 19932 | -3/Testing | Discovered new exit (range 13) 20035 | -3/Testing | First assault squad dispatched 20138 | -3/Testing | Destroyed 11 combat bots 20248 | -3/Testing | Entered Research 20248 | -2/Research | Evolved 2 slots: Power x1, Utility x1 20524 | -2/Research | Spotted B-90 Cyclops 20527 | -2/Research | Garrison activated, responded to threat 20732 | -2/Research | Lost 4 parts (2p2u) 20785 | -2/Research | System corruption reached 10% 20897 | -2/Research | Lost 3 parts (2p1w) 20998 | -2/Research | First assault squad dispatched 21163 | -2/Research | Incoming assault squad redirected 21305 | -2/Research | Incoming assault squad redirected 21445 | -2/Research | Build established: Scavenger-Tank 21789 | -2/Research | Found Prototype Device 21789 | -2/Research | Identified Exp. Thermal Shield 22095 | -2/Research | Garrison activated, responded to threat 22140 | -2/Research | Lost 3 parts (2u1w) 22295 | -2/Research | System corruption reached 30% 22371 | -2/Research | Lost 3 parts (1p2u) 22371 | -2/Research | Spotted B-90 Cyclops 22454 | -2/Research | Lost 9 parts (2p1n4u2w) 22494 | -2/Research | Destroyed B-90 Cyclops 22553 | -2/Research | Lost 10 parts (2p2n3u3w) 22764 | -2/Research | Found Hvy. Reactive Plating 22884 | -2/Research | Core integrity fell below 50% 22892 | -2/Research | Incoming assault squad redirected 22935 | -2/Research | Lost 6 parts (1p2n3u) 23024 | -2/Research | Incoming assault squad redirected 23138 | -2/Research | Lost 4 parts (1n1u2w) 23531 | -2/Research | High security lockdown imminent 23551 | -2/Research | Lost 7 parts (1p2n2u2w) 23595 | -2/Research | Core integrity fell below 20% 23609 | -2/Research | Destroyed by G-73 Enforcer with Phase Gun Last Messages --------------- crushing effect. 23597_ Myomer Leg destroyed. 23597_ Critical hit (Burn: +37). 23598_ System corrupted: Matter fused (-6). 23598_ G-73 Enforcer system terminally corrupted. 23598_ Adv. Heat Sink fried. 23599_ Nova Cannon destroyed. 23600_ Myomer Leg destroyed. 23600_ Dropped Huge Storage Unit. 23601_ Adv. Heat Sink destroyed. 23602_ Acquired Corrupted Rnf. Antimatter Reactor. 23602_ Integrated Corrupted Rnf. Antimatter Reactor (+2). 23603_ Critical hit (Burn: +37). 23605_ Point Defense System destroyed. 23606_ Critical hit (Burn: +37). 23608_ Antimatter Diverter explodes. 23608_ G-73 Enforcer destroyed. Map ----- +----------------------------------------------------+ | ??????????????????????????????????????##?#??#!!! | | ?????????????????????????????????????#??????# | | ????????????????????????????????????????????# | | ????????????????????????????????????????????# | | ????????????????????????????????????????????# | | ????????????????????????????????????????????###### | | ?????????????????????????????????????????????????? | | ???????????????????????????????????????##????????? | | ?????????????????????????????????????????????????? | | ?????????????????????????????????????????????????# | | ?????????????????????????????????????????????????? | | ?????????????????????????????????????????????????? | | ???????????????????????????????????????????????#?? | | ?????????????????????????????????????????????????? | | ?????????????????????????????????????????????????# | | ???????????????????????????????????????????#####?? | | ?????????????????????????????????????????? #?? | | ????????????????????????????????????????? ??? | | ????????????????????????????????????????? ??? | | ???????????????????????????????????###?? """??? | | ???????????????????????############# #? """??? | | ??????????????????????##; # """#?? | | ??????????????????????#" %# #?# | | ?????????????????????##" =! !! # #?# | | ?????????????????????# !=% %%! #+##+######## | | ?????????????????????# *%@[ *g| # # | | ?????????????????????# * ! * %* "" + # | | ????????????????????# "" %=%! m# # | | ????????????????????# "" * S" %+ %+ | | ????????????????????## gg "" "####+### %# | | ?????????????????????## "" ## # # | | ?????????????????????? ## # # | | ?????????????????????# ## # # | | ?????????????????????## ####### + # | | ??????????????????????####% # ###?????# # # | | ?????????????????????????# ####???????# # # | | ?????????????????????????# #??????????# # # | | ?????????????????????????? #??????????# ! # # | | ?????????????????????????? ???????????####### # | | ?????????????????????????? ????????????????? %# | | ?????????????????????????? ???????????????? # | | ?????????????????????????????????????????? # | | ?????????????????????????????????????????? | | ?????????????????????????????????????????######### | | ?????????????????????????????????????????????????? | | ?????????????????????????????????????????????????? | | ?????????????????????????????????????????????????? | | ?????????????????????????????????????????????????? | | ?????????????????????????????????????????????????? | | ?????????????????????????????????????????????????? | +----------------------------------------------------+ Best States ------------- Heat Dissipation 130 Coolant Potential 80 Energy Generation 72 Energy Capacity 830 Matter Stores 300 Matter Capacity 300 Sight Range 16 Robot Scan Range 18 Terrain Scan Range 20 Terrain Scan Density 110 Jamming Range 16 Power Amplification 30 Armor Coverage 3200 Resistance: KI 40 Resistance: TH 30 Resistance: EM 90 Core Shielding 30 Point Defense Rating 80 Phase Shifting 15 Evasion (%) 55 Targeting Accuracy 16 Core Analysis 6 Recoil Reduction 6 Matter Filtering 50 Particle Charging 20 Kinecelleration 40 Item Schematics ----------------- Huge Storage Unit | -8/Materials | Hacked Beamcaster | -7/Zion | Free Hvy. Riot Gun | -7/Zion | Free Hvy. Beamcaster | -7/Zion | Free Hvy. Battle Rifle | -7/Zion | Free Combat Drone Bay | -6/Data Miner | Free Lgt. Regenerative Plating | -6/Data Miner | Free Enh. Armored Leg | -6/Data Miner | Free Prc. Matter Filter | -6/Data Miner | Free Kinetic Spear | -6/Data Miner | Free Adv. VSS Leg | -6/Data Miner | Free Imp. Force Booster | -6/Data Miner | Free HERF Cannon | -6/Data Miner | Free Exp. Power Amplifier | -3/Testing | Archive Cld. Antimatter Reactor | -3/Testing | Archive Robot Schematics ------------------ G-50 Soldier | -6/Data Miner | Free Y-54 Guardian | -6/Data Miner | Free L-41 Fighter | -6/Data Miner | Free M-36 Artificer | -6/Data Miner | Free A-15 Conveyor | -6/Data Miner | Free G-67 Veteran | -6/Data Miner | Free Fabricated ------------ Nothing Alien Tech Used ----------------- Core Expander Achievements -------------- Collateral Damage Turtlemind We Are Legion Challenges ------------ None Game ------ Seed LayeredClaymoresFragment Manual? 0 Play Time 03:52:59 Cumulative 83.5 hours Start 2024.11.13 @ 00:59:29 End 2024.11.14 @ 18:37:55 Sessions 5 Manual Loads 0 Difficulty Rogue Special Mode None Game No. 53 Rogue 53 Adventurer 0 Explorer 0 Win Type - Total 1 Types 1/0/0/0/0/0/0/0/0 Lore% 38 Gallery% 56 Achievement% 44 Wizard Run 0 Options --------- Layout 2 ASCII 0 Keyboard 1 Movement Numpad Keybinds 0 Fullscreen 2 Font 24/Terminus Map View 50x49 Zoom Use 0% Tactical HUD 1 Map Filters NONE Filters NONE Steam 1 RUN: cf31c81c-67f3-4761-b220-d6336d2094de